bitfinex/quotes_BTCUSD_20250414
["timestamp","ask_amount","ask_price","bid_price","bid_amount"]
[1744609107030,0.00146151,84355.0,84354.0,0.32333424]
[1744609107239,0.00046151,84355.0,84354.0,0.32033424]
[1744609107694,0.00146151,84355.0,84354.0,0.32333424]
[1744609108111,0.00146151,84355.0,84354.0,0.31833424]
[1744609115044,0.00146151,84355.0,84354.0,0.0128167]
[1744609115246,0.117677,84355.0,84354.0,0.0128167]
[1744609115545,0.23851854,84355.0,84354.0,0.003]
[1744609115945,0.57851854,84355.0,84354.0,0.003]
[1744609116107,0.58938341,84355.0,84354.0,0.003]
[1744609116307,0.58938341,84355.0,84320.0,0.0004226]
[1744609116308,0.011859,84324.0,84320.0,0.0004226]
[1744609116713,0.201597,84327.0,84320.0,0.0122816]
[1744609116912,0.03357349,84326.0,84322.0,0.02158661]
[1744609117118,0.01086487,84325.0,84322.0,0.02158661]
[1744609117325,0.02171549,84324.0,84322.0,0.02158661]
[1744609117567,0.02217671,84324.0,84322.0,0.02158661]
[1744609117987,0.02171549,84323.0,84322.0,0.02158661]
[1744609118629,0.03258036,84323.0,84322.0,0.01172761]
[1744609118958,0.03258036,84323.0,84322.0,0.002]
[1744609119165,0.03258036,84323.0,84322.0,0.01180593]
[1744609119504,0.01086487,84323.0,84322.0,0.01180593]
[1744609119712,0.01086487,84323.0,84322.0,0.00980593]
[1744609119917,0.01086487,84323.0,84322.0,0.01180593]
[1744609120113,0.01186487,84323.0,84322.0,0.01180593]
[1744609120322,0.01186487,84323.0,84322.0,0.00980593]
[1744609120649,0.01286487,84323.0,84322.0,0.01180593]
[1744609121523,0.20261087,84323.0,84322.0,0.002]
[1744609121845,0.01286487,84323.0,84322.0,0.002]
[1744609122258,0.01286487,84323.0,84322.0,0.01197076]
[1744609122612,0.01086487,84323.0,84322.0,0.00997076]
[1744609122886,0.00046122,84324.0,84323.0,0.189746]
[1744609123265,0.00046122,84324.0,84323.0,0.1997486]
[1744609123576,0.01133727,84324.0,84323.0,0.1997486]
[1744609124199,0.01233727,84324.0,84323.0,0.2017486]
[1744609124479,0.01233727,84324.0,84323.0,0.0120026]
[1744609124682,0.00146122,84324.0,84323.0,0.0120026]
[1744609125459,0.00146122,84324.0,84323.0,0.002]
[1744609126245,0.04706122,84324.0,84323.0,0.002]
[1744609126692,0.0579324,84324.0,84323.0,0.002]
[1744609127493,0.189746,84323.0,84321.0,0.002]
[1744609127856,0.189746,84323.0,84322.0,0.01001398]
[1744609128061,0.189746,84323.0,84321.0,0.002]
[1744609128682,0.190746,84323.0,84321.0,0.002]
[1744609129763,0.191746,84323.0,84321.0,0.003]
[1744609130888,0.06528642,84322.0,84321.0,0.003]
[1744609131093,0.75026796,84322.0,84321.0,0.003]
[1744609131384,0.68498154,84322.0,84321.0,0.003]
[1744609131546,0.5206076,84322.0,84321.0,0.003]
[1744609131745,0.6958476,84322.0,84321.0,0.003]
[1744609132065,0.57500606,84322.0,84321.0,0.003]
[1744609132268,0.57500606,84322.0,84321.0,0.002]
[1744609133154,0.57700606,84322.0,84321.0,0.002]
[1744609133358,0.5256076,84322.0,84321.0,0.002]
[1744609133568,0.7008476,84322.0,84321.0,0.002]
[1744609134992,0.70983609,84322.0,84321.0,0.002]
[1744609135158,1.11201635,84322.0,84321.0,0.002]
[1744609135981,0.34,84321.0,84315.0,0.0004222]
[1744609136173,0.189762,84316.0,84315.0,0.0004222]
[1744609136699,0.20062806,84316.0,84315.0,0.0004222]
[1744609138666,0.20162806,84316.0,84315.0,0.0004222]
[1744609138985,0.20062806,84316.0,84315.0,0.0004222]
[1744609139184,0.20162806,84316.0,84315.0,0.0004222]
[1744609139388,0.01186,84313.0,84308.0,0.011861]
[1744609139582,0.01186,84315.0,84310.0,0.01186]
[1744609139820,0.01386606,84316.0,84313.0,0.201629]
[1744609140015,0.01586606,84316.0,84313.0,0.201629]
[1744609140226,0.005,84316.0,84315.0,0.189764]
[1744609140426,0.005,84316.0,84315.0,0.32061691]
[1744609140653,0.003,84316.0,84315.0,0.32061691]
[1744609141655,0.00046122,84324.0,84323.0,0.189746]
[1744609141854,0.00046122,84324.0,84323.0,0.32063151]
[1744609143635,0.00146122,84324.0,84323.0,0.32063151]
[1744609145100,0.00046122,84324.0,84323.0,0.32063151]
[1744609145458,0.00146122,84324.0,84323.0,0.32263151]
[1744609145644,0.00146122,84324.0,84323.0,0.33817236]
[1744609145848,0.00046122,84324.0,84323.0,0.33617236]
[1744609146098,0.00146122,84324.0,84323.0,0.33817236]
[1744609146447,0.00146122,84324.0,84323.0,0.34017236]
[1744609146890,0.00046122,84324.0,84323.0,0.33717236]
[1744609147043,0.00046122,84324.0,84323.0,0.33517236]
[1744609147364,0.00146122,84324.0,84323.0,0.33917236]
[1744609147742,0.00146122,84324.0,84323.0,0.67917236]
[1744609148526,0.00046122,84324.0,84323.0,0.67517236]
[1744609148804,0.00146122,84324.0,84323.0,0.67917236]
[1744609149103,0.00046122,84324.0,84323.0,0.67817236]
[1744609149316,0.00146122,84324.0,84323.0,0.68217236]
[1744609149607,2.2e-07,84324.0,84323.0,0.68017236]
[1744609149831,0.00100022,84324.0,84323.0,1.10087236]
[1744609150032,0.001,84324.0,84323.0,1.09687236]
[1744609150321,0.060754,84356.0,84352.0,0.011855]
[1744609150561,0.060754,84356.0,84353.0,0.00986973]
[1744609151479,0.060754,84356.0,84352.0,7.698e-05]
[1744609151480,0.011854,84355.0,84352.0,7.698e-05]
[1744609151921,0.011854,84355.0,84353.0,0.00986647]
[1744609152828,0.011854,84355.0,84352.0,7.698e-05]
[1744609153446,0.201529,84355.0,84352.0,7.698e-05]
[1744609153627,0.202529,84355.0,84352.0,7.698e-05]
[1744609153827,0.189679,84353.0,84352.0,7.698e-05]
[1744609154112,0.189679,84353.0,84352.0,0.00990703]
[1744609155850,0.201529,84355.0,84352.0,0.00990703]
[1744609156055,0.189679,84353.0,84352.0,0.00990703]
[1744609156849,0.189679,84353.0,84352.0,7.698e-05]
[1744609157674,0.201529,84355.0,84352.0,7.698e-05]
[1744609157876,0.189678,84354.0,84352.0,7.698e-05]
[1744609158226,0.011853,84363.0,84357.0,0.011854]
[1744609158416,0.011853,84360.0,84357.0,0.011854]
[1744609158577,0.34,84365.0,84358.0,0.201519]
[1744609158794,0.049,84366.0,84365.0,0.189652]
[1744609158994,0.41116875,84373.0,84370.0,0.201492]
[1744609159317,0.34,84372.0,84370.0,0.201492]
[1744609159852,0.34,84372.0,84371.0,0.00973538]
[1744609160423,0.34,84373.0,84371.0,0.011852]
[1744609160635,0.001,84372.0,84368.0,0.011852]
[1744609161048,0.001,84372.0,84368.0,0.201497]
[1744609161430,0.001,84372.0,84369.0,0.00973274]
[1744609161762,0.011852,84370.0,84367.0,0.011852]
[1744609161914,1.27,84374.0,84373.0,0.189634]
[1744609162116,1.2208,84374.0,84373.0,0.19934597]
[1744609162832,0.049,84377.0,84376.0,0.189627]
[1744609163139,0.002,84379.0,84377.0,0.189622]
[1744609163363,0.002,84379.0,84378.0,0.00968474]
[1744609163571,0.002,84379.0,84378.0,0.19930674]
[1744609163775,0.002,84379.0,84378.0,0.189622]
[1744609163983,0.002,84379.0,84378.0,0.19931]
[1744609164739,0.002,84379.0,84378.0,0.19938698]
[1744609165449,0.004,84379.0,84378.0,0.19938698]
[1744609165804,0.005,84379.0,84378.0,0.19938698]
[1744609167573,0.005,84379.0,84378.0,0.00976498]
[1744609167965,0.005,84379.0,84378.0,7.698e-05]
[1744609168954,0.005,84379.0,84378.0,0.18969898]
[1744609169172,0.005,84379.0,84378.0,0.19934027]
[1744609170173,0.005,84379.0,84378.0,0.00971827]
[1744609170777,0.005,84379.0,84378.0,0.19934027]
[1744609171516,0.004,84379.0,84378.0,0.00971827]
[1744609171666,0.002,84379.0,84378.0,0.00971827]
[1744609171988,0.003,84379.0,84378.0,0.00971827]
[1744609172597,0.004,84379.0,84378.0,0.00971827]
[1744609183989,0.004,84379.0,84378.0,0.13292983]
[1744609184651,0.003,84379.0,84378.0,0.13292983]
[1744609185000,0.002,84379.0,84378.0,0.13155981]
[1744609185304,0.003,84379.0,84378.0,0.15247033]
[1744609185507,0.0008442,84388.0,84387.0,0.189602]
[1744609185690,0.0008442,84388.0,84387.0,0.38221516]
[1744609186249,2.9e-07,84416.0,84414.0,0.01454085]
[1744609186469,2.9e-07,84416.0,84415.0,0.31964341]
[1744609187505,0.00046208,84416.0,84415.0,0.31964341]
[1744609188113,0.00046208,84416.0,84415.0,0.32164341]
[1744609188443,0.00146208,84416.0,84415.0,0.32164341]
[1744609188781,0.00146208,84416.0,84415.0,0.32664341]
[1744609189022,0.00246179,84416.0,84415.0,0.32664341]
[1744609201967,0.04956179,84416.0,84415.0,0.01626287]
[1744609202116,0.04956179,84416.0,84415.0,0.007]
[1744609202682,0.38756179,84416.0,84415.0,0.002]
[1744609202892,0.011847,84409.0,84404.0,0.011847]
[1744609203098,0.011847,84409.0,84406.0,0.011847]
[1744609203706,0.011847,84409.0,84407.0,0.00912766]
[1744609204947,0.011847,84409.0,84405.0,0.011847]
[1744609205151,0.011847,84409.0,84407.0,0.001]
[1744609205583,0.011847,84409.0,84408.0,0.00912766]
[1744609206606,0.201394,84412.0,84408.0,0.00912766]
[1744609206823,0.38756179,84416.0,84413.0,0.201388]
[1744609207023,0.38756179,84416.0,84415.0,0.189539]
[1744609207024,0.04756179,84416.0,84415.0,0.189539]
[1744609207384,0.04756179,84416.0,84415.0,0.19876033]
[1744609207829,0.00046179,84416.0,84415.0,0.31960187]
[1744609207971,0.00246179,84416.0,84415.0,0.31960187]
[1744609208371,0.00046179,84416.0,84415.0,0.31960187]
[1744609208789,0.00046179,84416.0,84415.0,0.32060187]
[1744609209000,0.00046179,84416.0,84415.0,0.31960187]
[1744609209594,0.00046179,84416.0,84415.0,0.33414272]
[1744609209791,7.9e-07,84416.0,84415.0,0.67614272]
[1744609210418,0.00100079,84416.0,84415.0,0.68114272]
[1744609210617,7.9e-07,84416.0,84415.0,0.67614272]
[1744609211054,0.00100079,84416.0,84415.0,0.68014272]
[1744609211248,0.00100079,84416.0,84415.0,0.67414272]
[1744609211413,0.00200079,84416.0,84415.0,0.67614272]
[1744609211838,0.00200079,84416.0,84415.0,0.84586272]
[1744609212051,0.00300079,84416.0,84415.0,0.85186272]
[1744609212458,0.00200079,84416.0,84415.0,0.84986272]
[1744609212754,0.00300079,84416.0,84415.0,0.85186272]
[1744609212932,0.00300079,84416.0,84415.0,0.49732187]
[1744609213908,0.00100079,84416.0,84415.0,0.49132187]
[1744609214119,0.00100079,84416.0,84415.0,0.49432187]
[1744609214502,0.00100079,84416.0,84415.0,0.49632187]
[1744609214705,0.00200079,84416.0,84415.0,0.50132187]
[1744609214952,0.00200079,84416.0,84415.0,0.49932187]
[1744609215415,0.00200079,84416.0,84415.0,0.50132187]
[1744609215739,0.00200079,84416.0,84415.0,0.50872245]
[1744609217313,0.00200079,84416.0,84415.0,0.33900245]
[1744609220540,0.00200079,84416.0,84415.0,0.02862191]
[1744609221175,0.04900079,84416.0,84415.0,0.01940058]
[1744609221519,0.04900079,84416.0,84415.0,0.02845953]
[1744609221950,0.04900079,84416.0,84415.0,0.01905895]
[1744609222252,0.04900079,84416.0,84415.0,0.02105895]
[1744609222630,0.00200079,84416.0,84415.0,0.02105895]
[1744609222790,0.00200079,84416.0,84415.0,0.0234279]
[1744609223327,7.9e-07,84416.0,84415.0,0.02082876]
[1744609223503,7.9e-07,84416.0,84415.0,0.02482876]
[1744609223709,0.00100079,84416.0,84415.0,0.02482876]
[1744609224860,0.00100079,84416.0,84415.0,0.02245981]
[1744609225982,0.00100079,84416.0,84415.0,0.01505895]
[1744609229499,0.38272233,84416.0,84415.0,0.01505895]
[1744609229647,0.72272233,84416.0,84415.0,0.01505895]
[1744609230047,0.60188079,84416.0,84415.0,0.006]
[1744609230270,0.60188079,84416.0,84415.0,0.004]
[1744609230487,0.201392,84412.0,84408.0,0.011847]
[1744609230688,0.201397,84410.0,84408.0,0.00740269]
[1744609230888,0.201397,84410.0,84409.0,0.00771615]
[1744609231510,0.189565,84404.0,84402.0,0.00740269]
[1744609231652,0.011847,84404.0,84400.0,0.011848]
[1744609231858,0.047,84410.0,84409.0,0.189553]
[1744609232298,0.047,84410.0,84409.0,0.20343412]
[1744609232504,0.047,84410.0,84409.0,0.01388112]
[1744609232712,0.74559254,84410.0,84409.0,0.01388112]
[1744609233030,0.01185,84382.0,84377.0,0.011851]
[1744609233227,0.01185,84382.0,84380.0,0.01383057]
[1744609233432,0.01185,84382.0,84381.0,0.0004218]
[1744609234334,0.01285,84382.0,84381.0,0.0004218]
[1744609234496,0.0128961,84382.0,84381.0,0.0004218]
[1744609234834,0.0128961,84382.0,84381.0,0.0024218]
[1744609235138,0.0128961,84382.0,84381.0,0.01842582]
[1744609235487,0.0128961,84382.0,84381.0,0.0044218]
[1744609235682,0.18073764,84382.0,84381.0,0.01845244]
[1744609235836,0.18073764,84382.0,84381.0,0.0044218]
[1744609236468,0.18073764,84382.0,84381.0,0.0024218]
[1744609236668,0.17973764,84382.0,84381.0,0.0004218]
[1744609236865,0.17973764,84382.0,84381.0,0.0024218]
[1744609237066,0.18073764,84382.0,84381.0,0.0024218]
[1744609242172,0.34649764,84382.0,84381.0,0.0024218]
[1744609242875,0.39469764,84382.0,84381.0,0.0024218]
[1744609246044,0.22893764,84382.0,84381.0,0.0024218]
[1744609246248,0.39469764,84382.0,84381.0,0.0024218]
[1744609251820,0.834605,84382.0,84381.0,0.0024218]
[1744609251964,0.0936,84371.0,84370.0,0.0004218]
[1744609252163,0.55444154,84371.0,84370.0,0.0004218]
[1744609253129,0.56898239,84371.0,84370.0,0.0004218]
[1744609253299,0.189681,84352.0,84347.0,0.0004218]
[1744609253499,0.47152254,84352.0,84347.0,0.0004218]
[1744609254392,0.81152254,84352.0,84347.0,0.0004218]
[1744609254604,0.85772254,84352.0,84351.0,0.002461]
[1744609255501,0.85872254,84352.0,84351.0,0.002461]
[1744609256217,0.85972254,84352.0,84351.0,0.002461]
[1744609257180,0.87138866,84352.0,84351.0,0.002461]
[1744609257386,0.87138866,84352.0,84347.0,0.0004218]
[1744609257387,0.52969,84348.0,84347.0,0.0004218]
[1744609257660,0.52969,84348.0,84347.0,0.00049878]
[1744609257661,0.69673154,84348.0,84347.0,0.00049878]
[1744609259363,0.69873154,84348.0,84347.0,0.00049878]
[1744609259677,0.70173154,84348.0,84347.0,0.00049878]
[1744609260866,0.529694,84346.0,84332.0,0.011857]
[1744609261070,0.529694,84346.0,84345.0,0.00047653]
[1744609262095,0.530694,84346.0,84345.0,0.00047653]
[1744609262671,0.531694,84346.0,84345.0,0.00047653]
[1744609262869,0.002,84346.0,84345.0,0.19017353]
[1744609263271,0.002,84346.0,84345.0,0.20470298]
[1744609263454,0.001,84346.0,84345.0,0.21211206]
[1744609263815,0.002,84346.0,84345.0,0.21211206]
[1744609263970,0.001,84346.0,84345.0,0.3353246]
[1744609264161,1.21992,84355.0,84354.0,0.189676]
[1744609264357,1.21992,84355.0,84354.0,0.21152842]
[1744609264563,0.16104,84362.0,84361.0,0.189661]
[1744609264874,0.16104,84362.0,84361.0,0.19707008]
[1744609265069,0.16104,84362.0,84361.0,0.21149678]
[1744609266408,0.011852,84368.0,84364.0,0.011853]
[1744609266654,0.011852,84367.0,84365.0,0.01447333]
[1744609266852,0.189649,84366.0,84364.0,0.00740908]
[1744609267061,0.011852,84367.0,84364.0,0.00740908]
[1744609267259,0.011852,84367.0,84365.0,0.01447333]
[1744609267826,0.011852,84367.0,84364.0,0.00740908]
[1744609268061,0.011852,84367.0,84365.0,0.01447666]
[1744609268444,0.012852,84367.0,84363.0,0.011853]
[1744609268674,0.012852,84367.0,84364.0,0.01447333]
[1744609268882,0.001,84367.0,84366.0,0.189649]
[1744609269090,0.001,84368.0,84366.0,0.189649]
[1744609269091,0.001,84368.0,84366.0,0.19705808]
[1744609269241,0.002,84367.0,84366.0,0.21147813]
[1744609270146,0.001,84367.0,84366.0,0.21147813]
[1744609270350,0.002,84367.0,84366.0,0.02182913]
[1744609270562,0.189647,84368.0,84366.0,0.01442005]
[1744609270800,0.011853,84363.0,84358.0,0.00740908]
[1744609271037,0.011853,84362.0,84359.0,0.02630401]
[1744609271642,0.011853,84363.0,84360.0,0.011853]
[1744609272022,0.011853,84363.0,84361.0,0.01446666]
[1744609272192,0.201502,84366.0,84361.0,0.02631966]
[1744609272341,0.201496,84369.0,84364.0,0.011853]
[1744609272543,0.011852,84369.0,84365.0,0.011853]
[1744609272736,0.011852,84371.0,84365.0,0.03373208]
[1744609272985,0.011852,84371.0,84366.0,0.189647]
[1744609273243,0.011852,84371.0,84367.0,0.01445335]
[1744609273439,0.201492,84370.0,84367.0,0.02186243]
[1744609273850,0.001,84369.0,84367.0,0.01445335]
[1744609274220,0.201493,84370.0,84367.0,0.01445335]
[1744609274487,0.189645,84368.0,84367.0,0.01445335]
[1744609275397,0.011852,84367.0,84364.0,0.011853]
[1744609275947,0.201505,84365.0,84362.0,0.00740908]
[1744609276155,0.189656,84363.0,84362.0,0.00740908]
[1744609276470,0.011855,84349.0,84346.0,0.01926408]
[1744609276688,0.161,84354.0,84350.0,0.189685]
[1744609276875,0.161,84354.0,84352.0,0.189681]
[1744609277032,0.161,84354.0,84351.0,0.02172596]
[1744609277215,0.189679,84353.0,84351.0,0.02172596]
[1744609277631,0.172854,84354.0,84351.0,0.01431688]
[1744609277836,0.161,84354.0,84352.0,0.189681]
[1744609278071,0.161,84354.0,84353.0,0.01434027]
[1744609279484,0.162,84354.0,84353.0,0.01434027]
[1744609279638,0.161,84354.0,84353.0,0.01434027]
[1744609280041,0.162,84354.0,84353.0,0.01434027]
[1744609281398,0.351676,84354.0,84353.0,0.01434027]
[1744609281601,0.400676,84354.0,84353.0,0.01434027]
[1744609281803,0.189694,84346.0,84345.0,0.00047653]
[1744609283027,0.190694,84346.0,84345.0,0.00047653]
[1744609284240,1.16383554,84346.0,84345.0,0.00047653]
[1744609284439,0.625528,84331.0,84330.0,0.0004219]
[1744609284663,1.32146954,84331.0,84330.0,0.0004219]
[1744609285625,1.33337662,84331.0,84330.0,0.0004219]
[1744609286143,1.33637662,84331.0,84330.0,0.0004219]
[1744609286502,1.33637662,84331.0,84311.0,0.0004224]
[1744609286503,0.54427385,84329.0,84311.0,0.0004224]
[1744609286703,0.71411539,84329.0,84311.0,0.0004224]
[1744609287023,0.72502247,84329.0,84311.0,0.0004224]
[1744609287229,0.71048162,84329.0,84311.0,0.0004224]
[1744609288079,0.69957454,84329.0,84311.0,0.0004224]
[1744609289258,0.70457454,84329.0,84311.0,0.0004224]
[1744609289461,0.70757454,84329.0,84311.0,0.0004224]
[1744609290502,0.72211539,84329.0,84311.0,0.0004224]
[1744609290642,1.12407454,84329.0,84311.0,0.0004224]
[1744609292804,1.12407454,84329.0,84317.0,0.01186]
[1744609292961,1.12407454,84329.0,84316.0,0.189761]
[1744609292962,1.23375454,84329.0,84316.0,0.189761]
[1744609293163,1.23375454,84329.0,84322.0,0.011859]
[1744609293164,0.772913,84329.0,84322.0,0.011859]
[1744609293366,0.772913,84329.0,84321.0,0.013859]
[1744609293567,0.614233,84329.0,84322.0,0.011859]
[1744609293764,0.772913,84329.0,84322.0,0.011859]
[1744609293977,0.772913,84329.0,84323.0,0.011859]
[1744609294665,0.89375454,84329.0,84321.0,0.002]
[1744609298747,1.28125454,84329.0,84321.0,0.002]
[1744609299072,1.33085454,84329.0,84321.0,0.002]
[1744609306674,1.28335454,84329.0,84321.0,0.002]
[1744609313007,1.2942906,84329.0,84321.0,0.002]
[1744609313786,0.43543606,84329.0,84322.0,0.011859]
[1744609313986,0.43543606,84329.0,84328.0,0.1901569]
[1744609313987,0.01893606,84329.0,84328.0,0.1901569]
[1744609314357,0.01893606,84329.0,84328.0,0.20611698]
[1744609314358,0.008,84329.0,84328.0,0.20611698]
[1744609315105,0.003,84329.0,84328.0,0.20611698]
[1744609315403,0.15868,84333.0,84331.0,0.189727]
[1744609315784,0.15881833,84346.0,84343.0,0.011856]
[1744609315987,0.17067333,84346.0,84341.0,0.20156]
[1744609316194,0.17067333,84346.0,84337.0,0.011857]
[1744609316395,0.011856,84343.0,84342.0,0.01589449]
[1744609316610,0.201555,84345.0,84340.0,0.011856]
[1744609316775,0.201555,84345.0,84342.0,0.01588116]
[1744609316977,0.201555,84345.0,84341.0,0.01586554]
[1744609317171,0.201555,84345.0,84343.0,0.01586221]
[1744609317370,0.201555,84345.0,84340.0,0.011856]
[1744609317371,0.011856,84344.0,84340.0,0.011856]
[1744609317832,0.011856,84343.0,84338.0,0.201569]
[1744609318020,0.011856,84343.0,84339.0,0.011856]
[1744609318832,0.011856,84343.0,84340.0,0.012856]
[1744609319474,0.011856,84344.0,84341.0,0.011856]
[1744609320208,0.00013833,84346.0,84344.0,0.189698]
[1744609321410,0.00013833,84346.0,84345.0,0.01580426]
[1744609322051,0.00113833,84346.0,84345.0,0.01817521]
[1744609322255,0.00113833,84346.0,84345.0,0.01580426]
[1744609322658,0.00013833,84346.0,84345.0,0.01580426]
[1744609322967,0.00113833,84346.0,84345.0,0.01680426]
[1744609335450,0.40637387,84346.0,84345.0,0.01680426]
[1744609335803,0.40637387,84346.0,84345.0,0.001]
[1744609336194,0.189733,84329.0,84328.0,0.0004219]
[1744609336636,0.235933,84329.0,84328.0,0.0004219]
[1744609336992,0.0462,84329.0,84328.0,0.0004219]
[1744609337193,0.1586,84332.0,84330.0,0.18973]
[1744609337757,0.1586,84332.0,84331.0,0.01575153]
[1744609337896,0.04863833,84346.0,84339.0,0.011856]
[1744609338107,0.00013833,84346.0,84345.0,0.189697]
[1744609338317,0.00013833,84346.0,84345.0,0.20547086]
[1744609339680,0.00013833,84346.0,84345.0,0.3263124]
[1744609340060,0.00113833,84346.0,84345.0,0.3263124]
[1744609346262,0.00113833,84346.0,84345.0,0.01577386]
[1744609346681,0.00113833,84346.0,84343.0,0.011856]
[1744609346825,0.00113833,84346.0,84345.0,0.01566157]
[1744609347007,0.00113833,84346.0,84344.0,0.20535623]
[1744609347207,0.00113833,84346.0,84345.0,0.01566157]
[1744609347935,0.00013833,84346.0,84345.0,0.01566157]
[1744609348255,0.00113833,84346.0,84345.0,0.01566157]
[1744609348963,0.00113833,84346.0,84345.0,0.01666157]
[1744609348964,0.00213833,84346.0,84345.0,0.01666157]
[1744609350832,0.00213833,84346.0,84345.0,0.13987424]
[1744609351002,0.00213833,84346.0,84345.0,0.13750311]
[1744609351907,0.00213833,84346.0,84345.0,0.01666157]
[1744609353408,0.00213833,84346.0,84345.0,0.13987398]
[1744609354228,0.00213833,84346.0,84345.0,0.13750311]
[1744609354645,0.00113833,84346.0,84345.0,0.13650311]
[1744609354937,0.00013833,84346.0,84345.0,0.13850311]
[1744609355155,0.00113833,84346.0,84345.0,0.13850311]
[1744609356531,0.00113833,84346.0,84345.0,0.14087386]
[1744609357344,0.00113833,84346.0,84345.0,0.13850311]
[1744609357539,0.00113833,84346.0,84345.0,0.14087376]
[1744609358147,0.00113833,84346.0,84345.0,0.13850311]
[1744609358352,0.00113833,84346.0,84345.0,0.14050311]
[1744609359374,0.00013833,84346.0,84345.0,0.13850311]
[1744609359868,0.00113833,84346.0,84345.0,0.14250311]
[1744609363608,0.00113833,84346.0,84345.0,0.14487393]
[1744609364107,0.00113833,84346.0,84345.0,0.14250311]
[1744609364822,0.00113833,84346.0,84345.0,0.14050311]
[1744609365003,0.00113833,84346.0,84345.0,0.14250311]
[1744609365412,0.00013833,84346.0,84345.0,0.13850311]
[1744609365815,0.00113833,84346.0,84345.0,0.14250311]
[1744609367565,0.00113833,84346.0,84345.0,0.14487371]
[1744609367711,0.00113833,84346.0,84345.0,0.15704396]
[1744609368662,0.00013833,84346.0,84345.0,0.15304396]
[1744609368988,0.00113833,84346.0,84345.0,0.15704396]
[1744609369337,0.00113833,84346.0,84345.0,0.15504396]
[1744609369658,0.00113833,84346.0,84345.0,0.15704396]
[1744609373587,0.00113833,84346.0,84345.0,0.1594145]
[1744609373793,0.00113833,84346.0,84345.0,0.49493914]
[1744609373986,0.00113833,84346.0,84345.0,0.4925686]
[1744609374400,3.3e-07,84346.0,84345.0,1.05926792]
[1744609375251,0.000845,84364.0,84361.0,0.011853]
[1744609375477,0.000845,84364.0,84362.0,0.12084154]
[1744609375746,0.000845,84364.0,84363.0,0.00237035]
[1744609375923,0.000845,84364.0,84363.0,0.13441256]
[1744609376699,0.000845,84364.0,84363.0,0.14368368]
[1744609377430,0.000845,84364.0,84363.0,0.14468368]
[1744609377629,0.000845,84364.0,84363.0,0.13304221]
[1744609378351,0.095045,84364.0,84363.0,0.01220067]
[1744609379160,0.095045,84364.0,84363.0,0.01320067]
[1744609380508,0.095045,84364.0,84363.0,0.01220067]
[1744609380920,0.096045,84364.0,84363.0,0.01220067]
[1744609381655,0.011853,84361.0,84357.0,0.011854]
[1744609381860,0.0459,84360.0,84357.0,0.011854]
[1744609382079,0.0459,84360.0,84358.0,0.01063934]
[1744609382475,0.057753,84360.0,84357.0,0.011854]
[1744609382673,0.057753,84360.0,84359.0,0.01063601]
[1744609382896,0.057753,84360.0,84357.0,0.013854]
[1744609383058,0.057753,84360.0,84359.0,0.01063934]
[1744609383270,0.106053,84360.0,84359.0,0.01063934]
[1744609383472,0.0942,84344.0,84341.0,0.201561]
[1744609383693,0.0942,84344.0,84343.0,0.189701]
[1744609384025,0.0942,84344.0,84343.0,0.20036861]
[1744609387251,0.0942,84344.0,84343.0,0.20136861]
[1744609391265,0.0942,84344.0,84343.0,0.01166761]
[1744609391485,0.0942,84344.0,84343.0,0.20136861]
[1744609392707,0.2016,84354.0,84353.0,0.189679]
[1744609392948,0.2016,84354.0,84353.0,0.20045303]
[1744609393156,0.1522,84354.0,84353.0,0.20045303]
[1744609393303,0.0494,84362.0,84361.0,0.189661]
[1744609393502,0.0494,84362.0,84361.0,0.20051112]
[1744609394798,0.000845,84364.0,84363.0,0.189656]
[1744609395099,0.000845,84364.0,84363.0,0.20050279]
[1744609395391,0.000845,84364.0,84363.0,0.32134433]
[1744609397016,0.001845,84364.0,84363.0,0.32134433]
[1744609397236,0.001845,84364.0,84363.0,0.33588518]
[1744609398297,0.001845,84364.0,84363.0,0.67688518]
[1744609398526,0.000845,84364.0,84363.0,0.72278518]
[1744609398976,0.000845,84364.0,84363.0,0.72578518]
[1744609399175,0.000845,84364.0,84363.0,0.72478518]
[1744609399394,0.000845,84364.0,84363.0,0.72278518]
[1744609399618,0.001845,84364.0,84363.0,0.73078518]
[1744609401716,0.001845,84364.0,84363.0,0.68388518]
[1744609402162,0.001845,84364.0,84363.0,1.10258518]
[1744609404621,0.001845,84364.0,84363.0,0.74804433]
[1744609407448,0.001845,84364.0,84363.0,0.76258518]
[1744609410099,0.001845,84364.0,84363.0,1.10258518]
[1744609412610,0.001845,84364.0,84363.0,1.08804433]
[1744609414005,0.001845,84364.0,84363.0,1.10258518]
[1744609415270,0.001845,84364.0,84363.0,1.08804433]
[1744609423844,0.097045,84364.0,84363.0,1.08804433]
[1744609424256,0.097045,84364.0,84363.0,0.74804433]
[1744609424456,0.097045,84364.0,84363.0,0.62720279]
[1744609425570,0.097045,84364.0,84363.0,0.20850279]
[1744609430133,0.097045,84364.0,84363.0,0.20550279]
[1744609430474,0.000845,84364.0,84363.0,0.20250279]
[1744609430776,0.000845,84364.0,84363.0,0.20687325]
[1744609430975,0.000845,84364.0,84363.0,0.32571479]
[1744609431201,0.000845,84364.0,84363.0,0.32334433]
[1744609431836,0.000845,84364.0,84363.0,0.32134433]
[1744609432293,0.000845,84364.0,84363.0,0.32634433]
[1744609432827,0.001845,84364.0,84363.0,0.32834433]
[1744609433002,0.001845,84364.0,84363.0,0.33034433]
[1744609435409,0.001845,84364.0,84363.0,0.01984679]
[1744609436184,0.050645,84364.0,84363.0,0.01984679]
[1744609436384,0.098345,84364.0,84363.0,0.01984679]
[1744609436847,0.098345,84364.0,84363.0,0.009]
[1744609438120,0.098345,84364.0,84363.0,0.007]
[1744609438327,0.098345,84364.0,84363.0,0.008]
[1744609438878,0.011854,84354.0,84351.0,0.011855]
[1744609439007,0.0965,84353.0,84351.0,0.011855]
[1744609439218,0.0965,84353.0,84352.0,0.01071088]
[1744609440280,0.0975,84353.0,84352.0,0.01071088]
[1744609440903,0.0497,84353.0,84352.0,0.01471088]
[1744609441110,0.002,84353.0,84352.0,0.13555242]
[1744609441362,0.002,84353.0,84352.0,0.15009327]
[1744609441691,0.002,84353.0,84352.0,0.15209327]
[1744609442971,0.002,84353.0,84352.0,0.49209327]
[1744609443328,0.002,84353.0,84352.0,0.47755242]
[1744609444538,0.002,84353.0,84352.0,0.49209327]
[1744609445586,0.002,84353.0,84352.0,0.47755242]
[1744609446334,0.0958,84353.0,84352.0,0.20639188]